bitfinex/quotes_BTCUSD_20240921
["timestamp","ask_amount","ask_price","bid_price","bid_amount"]
[1726905180732,0.5811013,63154.0,63153.0,0.100752]
[1726905180966,0.58129102,63154.0,63153.0,0.100752]
[1726905181464,0.43964576,63154.0,63153.0,0.100752]
[1726905181919,0.17105367,63154.0,63153.0,0.100752]
[1726905182412,0.53487082,63154.0,63153.0,0.100752]
[1726905182653,0.24223806,63154.0,63153.0,0.100752]
[1726905182882,0.17105367,63154.0,63153.0,0.100752]
[1726905183339,0.24223732,63154.0,63153.0,0.100752]
[1726905183565,0.24223865,63154.0,63153.0,0.100752]
[1726905183801,0.24223721,63154.0,63153.0,0.100752]
[1726905184060,0.17105367,63154.0,63153.0,0.100752]
[1726905184724,0.24223702,63154.0,63153.0,0.100752]
[1726905185204,0.26596797,63154.0,63153.0,0.100752]
[1726905185428,0.24223733,63154.0,63153.0,0.100752]
[1726905185658,0.44000317,63154.0,63153.0,0.100752]
[1726905185883,0.17105367,63154.0,63153.0,0.100752]
[1726905186314,0.53484681,63154.0,63153.0,0.100752]
[1726905186541,0.4399646,63154.0,63153.0,0.100752]
[1726905187247,0.24224091,63154.0,63153.0,0.100752]
[1726905187970,0.53479115,63154.0,63153.0,0.100752]
[1726905190152,0.53488328,63154.0,63153.0,0.100752]
[1726905191991,0.53489496,63154.0,63153.0,0.100752]
[1726905192456,0.55861641,63154.0,63153.0,0.100752]
[1726905193414,0.53490253,63154.0,63153.0,0.100752]
[1726905193633,0.17105367,63154.0,63153.0,0.100752]
[1726905194103,0.53511704,63154.0,63153.0,0.100752]
[1726905194559,0.44016526,63154.0,63153.0,0.100752]
[1726905195010,0.55862287,63154.0,63153.0,0.100752]
[1726905195543,0.53487763,63154.0,63153.0,0.100752]
[1726905195733,0.53488073,63154.0,63153.0,0.100752]
[1726905195967,0.79590988,63154.0,63153.0,0.002652]
[1726905196210,0.81965202,63154.0,63153.0,0.002652]
[1726905196632,0.73996587,63154.0,63153.0,0.002652]
[1726905197115,0.85858093,63154.0,63153.0,0.002652]
[1726905197561,0.73987289,63154.0,63153.0,0.002652]
[1726905198494,0.62115735,63154.0,63153.0,0.002652]
[1726905199739,0.62125682,63154.0,63153.0,0.002652]
[1726905201552,0.74256394,63154.0,63153.0,0.002652]
[1726905203764,1.05924994,63154.0,63153.0,0.002652]
[1726905204260,1.84454479,63154.0,63153.0,0.002652]
[1726905204514,2.2208933,63154.0,63153.0,0.002652]
[1726905204779,0.93608412,63149.0,63148.0,0.001652]
[1726905205004,1.36799794,63149.0,63148.0,0.001652]
[1726905205649,1.74434645,63149.0,63148.0,0.001652]
[1726905206306,1.76234645,63149.0,63148.0,0.003652]
[1726905206521,1.76234645,63149.0,63148.0,0.002652]
[1726905206957,1.77034645,63149.0,63148.0,0.003652]
[1726905207416,1.64903933,63149.0,63148.0,0.003652]
[1726905207628,1.77034645,63149.0,63148.0,0.003652]
[1726905208564,1.91274825,63149.0,63148.0,0.003652]
[1726905208991,1.99194378,63149.0,63148.0,0.003652]
[1726905209675,1.61559527,63149.0,63148.0,0.003652]
[1726905211673,1.47319347,63149.0,63148.0,0.003652]
[1726905215536,1.39399794,63149.0,63148.0,0.003652]
[1726905219228,1.39399794,63149.0,63148.0,0.098052]
[1726905222425,1.39399794,63149.0,63143.0,0.001648]
[1726905222426,0.023,63144.0,63143.0,0.001648]
[1726905222642,0.57622094,63144.0,63143.0,0.001648]
[1726905222845,0.73458894,63144.0,63143.0,0.001648]
[1726905223257,0.53685351,63144.0,63143.0,0.001648]
[1726905223866,0.53685139,63144.0,63143.0,0.001648]
[1726905224033,0.46572879,63144.0,63143.0,0.001648]
[1726905224247,0.47672879,63144.0,63143.0,0.002648]
[1726905224454,0.55285136,63144.0,63143.0,0.002648]
[1726905225532,0.55285136,63144.0,63143.0,0.097048]
[1726905225983,0.48172879,63144.0,63143.0,0.097048]
[1726905226422,0.55285136,63144.0,63143.0,0.097048]
[1726905228097,0.40783145,63144.0,63143.0,0.097048]
[1726905228769,0.36042167,63144.0,63143.0,0.097048]
[1726905228999,0.40783247,63144.0,63143.0,0.097048]
[1726905229230,0.40783228,63144.0,63143.0,0.097048]
[1726905229698,0.24946428,63144.0,63143.0,0.097048]
[1726905230169,0.22646428,63144.0,63143.0,0.097048]
[1726905230436,0.17905367,63144.0,63143.0,0.099048]
[1726905230677,0.17905367,63144.0,63143.0,0.180748]
[1726905231708,0.16805367,63144.0,63143.0,0.179748]
[1726905231939,0.16505367,63144.0,63143.0,0.179748]
[1726905232377,0.17205367,63144.0,63143.0,0.181748]
[1726905233071,0.17205367,63144.0,63143.0,0.179748]
[1726905234003,0.16505367,63144.0,63143.0,0.180748]
[1726905234232,0.16505367,63144.0,63143.0,0.182748]
[1726905235572,0.16505367,63144.0,63143.0,0.184748]
[1726905237112,0.16505367,63144.0,63143.0,0.182748]
[1726905243297,0.16305367,63144.0,63143.0,0.177748]
[1726905243519,0.16405367,63144.0,63143.0,0.177748]
[1726905243771,0.16405367,63144.0,63143.0,0.179748]
[1726905248214,0.16405367,63144.0,63143.0,0.181748]
[1726905248843,0.16405367,63144.0,63143.0,0.179748]
[1726905250389,0.16405367,63144.0,63143.0,0.20816423]
[1726905253743,0.16405367,63144.0,63143.0,0.179748]
[1726905253945,0.16405367,63144.0,63143.0,0.21017725]
[1726905254283,0.16405367,63144.0,63143.0,0.20817725]
[1726905257748,0.21152449,63144.0,63143.0,0.20817725]
[1726905258214,0.16405367,63144.0,63143.0,0.21017725]
[1726905258654,0.21152449,63144.0,63143.0,0.20817725]
[1726905260096,0.21152449,63144.0,63143.0,0.12647725]
[1726905264082,0.43458688,63144.0,63143.0,0.12647725]
[1726905264293,0.23527692,63144.0,63143.0,0.12647725]
[1726905266942,0.23528434,63144.0,63143.0,0.12647725]
[1726905267441,0.16405367,63144.0,63143.0,0.12647725]
[1726905268524,0.16405367,63144.0,63143.0,0.12632144]
[1726905268741,0.43448054,63144.0,63143.0,0.12632144]
[1726905269193,0.43448054,63144.0,63143.0,0.1263214]
[1726905269405,0.52945477,63144.0,63143.0,0.1263214]
[1726905269847,0.43448054,63144.0,63143.0,0.1263214]
[1726905270507,0.52945477,63144.0,63143.0,0.1263214]
[1726905271828,0.52957442,63144.0,63143.0,0.1263214]
[1726905272061,0.52957442,63144.0,63143.0,0.12632187]
[1726905273705,0.43456138,63144.0,63143.0,0.12632187]
[1726905273960,0.52959743,63144.0,63143.0,0.12632187]
[1726905274212,0.60664712,63144.0,63143.0,0.03192187]
[1726905274455,0.52959743,63144.0,63143.0,0.03192187]
[1726905274731,0.43456138,63144.0,63143.0,0.03192187]
[1726905276915,0.43476026,63144.0,63143.0,0.03192187]
[1726905279630,0.43477947,63144.0,63143.0,0.03189882]
[1726905282827,0.43477947,63144.0,63143.0,0.003648]
[1726905283053,0.43477947,63144.0,63143.0,0.03190202]
[1726905286442,0.43477947,63144.0,63143.0,0.03190643]
[1726905289830,0.43477947,63144.0,63143.0,0.003648]
[1726905290207,0.43477947,63144.0,63143.0,0.03189889]
[1726905291796,0.43481451,63144.0,63143.0,0.03189889]
[1726905293389,0.5536424,63144.0,63143.0,0.03189889]
[1726905293615,0.55364442,63144.0,63143.0,0.003648]
[1726905293878,0.55364442,63144.0,63143.0,0.03192064]
[1726905294898,0.43481451,63144.0,63143.0,0.03192064]
[1726905299424,0.43481451,63144.0,63143.0,0.13152064]
[1726905300956,0.70565355,63144.0,63143.0,0.13149911]
[1726905301442,0.43489271,63144.0,63143.0,0.13149911]
[1726905303595,0.43489271,63144.0,63143.0,0.13349911]
[1726905305290,0.530006,63144.0,63143.0,0.13349911]
[1726905305976,0.530006,63144.0,63143.0,0.13149911]
[1726905309365,0.43493401,63144.0,63143.0,0.03189911]
[1726905309593,0.43493401,63144.0,63143.0,0.003648]
[1726905311872,0.43493401,63144.0,63143.0,0.03151286]
[1726905313627,0.43493401,63144.0,63143.0,0.003648]
[1726905313864,0.43493401,63144.0,63143.0,0.03151203]
[1726905315170,0.43493401,63144.0,63143.0,0.003648]
[1726905315387,0.43493401,63144.0,63143.0,0.0314872]
[1726905316078,0.55375987,63144.0,63143.0,0.0314872]
[1726905322555,0.55375987,63144.0,63143.0,0.03149232]
[1726905324762,0.55402709,63144.0,63143.0,0.03149232]
[1726905326158,0.55402709,63144.0,63143.0,0.03148955]
[1726905331946,0.55402709,63144.0,63143.0,0.003648]
[1726905332171,0.55402709,63144.0,63143.0,0.03151983]
[1726905333831,0.55402709,63144.0,63143.0,0.03153236]
[1726905334759,0.43520074,63144.0,63143.0,0.03153236]
[1726905334989,0.55402709,63144.0,63143.0,0.03153236]
[1726905336673,0.43520074,63144.0,63143.0,0.03153236]
[1726905336898,0.55402691,63144.0,63143.0,0.03153236]
[1726905339721,0.55396797,63144.0,63143.0,0.03153236]
[1726905342199,0.43514205,63144.0,63143.0,0.03153236]
[1726905342430,0.55396797,63144.0,63143.0,0.03153236]
[1726905342618,0.43514205,63144.0,63143.0,0.03153236]
[1726905342874,0.55397092,63144.0,63143.0,0.03153236]
[1726905344487,0.55397092,63144.0,63143.0,0.03154436]
[1726905344708,0.55397095,63144.0,63143.0,0.03154436]
[1726905346021,0.43514396,63144.0,63143.0,0.03154436]
[1726905347861,0.43514396,63144.0,63143.0,0.005648]
[1726905348089,0.43514396,63144.0,63143.0,0.03353714]
[1726905348319,0.23534751,63144.0,63143.0,0.03353714]
[1726905348540,0.21158049,63144.0,63143.0,0.12873714]
[1726905348759,0.23534751,63144.0,63143.0,0.12873714]
[1726905351263,0.23534751,63144.0,63143.0,0.100848]
[1726905351529,0.23534751,63144.0,63143.0,0.12878229]
[1726905355073,0.16405367,63144.0,63143.0,0.12878229]
[1726905355555,0.23534751,63144.0,63143.0,0.12878229]
[1726905358227,0.16405367,63144.0,63143.0,0.12875312]
[1726905358458,0.23533323,63144.0,63143.0,0.12875312]
[1726905360977,0.23533323,63144.0,63143.0,0.12873155]
[1726905362935,0.23533051,63144.0,63143.0,0.12873155]
[1726905363630,0.23533051,63144.0,63143.0,0.12872521]
[1726905364067,0.21157097,63144.0,63143.0,0.12872521]
[1726905364433,0.16405367,63144.0,63143.0,0.12872521]
[1726905366833,0.16405367,63144.0,63143.0,0.100848]
[1726905367079,0.16405367,63144.0,63143.0,0.12875064]
[1726905368002,0.211568,63144.0,63143.0,0.12875064]
[1726905368222,0.16405367,63144.0,63143.0,0.12875064]
[1726905368464,0.21156795,63144.0,63143.0,0.12875064]
[1726905368683,0.21156729,63144.0,63143.0,0.12875064]
[1726905369832,0.16405367,63144.0,63143.0,0.12875064]
[1726905370649,0.21156677,63144.0,63143.0,0.12875064]
[1726905371575,0.16405367,63144.0,63143.0,0.12875064]
[1726905371807,0.21156661,63144.0,63143.0,0.12875064]
[1726905372541,0.21156665,63144.0,63143.0,0.12875064]
[1726905373231,0.21156666,63144.0,63143.0,0.12875064]
[1726905373476,0.16405367,63144.0,63143.0,0.12875064]
[1726905373728,0.001,63144.0,63143.0,0.12875064]
[1726905373958,0.001,63144.0,63143.0,0.100848]
[1726905374173,0.001,63144.0,63143.0,0.12880873]
[1726905375341,0.04243105,63148.0,63146.0,0.002]
[1726905375578,0.000826,63148.0,63147.0,0.12746073]
[1726905376563,0.002826,63148.0,63147.0,0.12746073]
[1726905376795,0.008826,63148.0,63147.0,0.12846073]
[1726905377014,0.006826,63148.0,63147.0,0.12846073]
[1726905378354,0.17187967,63148.0,63147.0,0.12846073]
[1726905380668,0.17187967,63148.0,63147.0,0.12646073]
[1726905380897,0.17187967,63148.0,63147.0,0.12846073]
[1726905381114,0.17187967,63148.0,63147.0,0.12646073]
[1726905383875,0.17187967,63148.0,63147.0,0.0985]
[1726905384100,0.17187967,63148.0,63147.0,0.12641619]
[1726905384986,0.24313384,63148.0,63147.0,0.12641619]
[1726905386581,0.17187967,63148.0,63147.0,0.12641619]
[1726905386798,0.2431232,63148.0,63147.0,0.12641619]
[1726905387018,0.17187967,63148.0,63147.0,0.12641619]
[1726905387234,0.17187967,63148.0,63147.0,0.12841619]
[1726905387656,0.24312107,63148.0,63147.0,0.12841619]
[1726905389829,0.24312107,63148.0,63147.0,0.1005]
[1726905390101,0.24312107,63148.0,63147.0,0.12837081]
[1726905392089,0.24313215,63148.0,63147.0,0.12837081]
[1726905393397,0.24313215,63148.0,63147.0,0.02887081]
[1726905393643,0.44260926,63148.0,63147.0,0.02887081]
[1726905393912,0.17901569,63148.0,63147.0,0.12738737]
[1726905394385,0.22651957,63148.0,63147.0,0.12738737]
[1726905394864,0.17901569,63148.0,63147.0,0.12738737]
[1726905397758,0.25027338,63148.0,63147.0,0.12738737]
[1726905398427,0.17901569,63148.0,63147.0,0.12738737]
[1726905398899,0.25027338,63148.0,63147.0,0.12738737]
[1726905400094,0.17901569,63148.0,63147.0,0.12738737]
[1726905400292,0.17901569,63148.0,63147.0,0.12538737]
[1726905400572,0.54429915,63148.0,63147.0,0.12538737]
[1726905400801,0.54429915,63148.0,63147.0,0.12738737]
[1726905401296,0.17901569,63148.0,63147.0,0.12738737]
[1726905401538,0.17901569,63148.0,63147.0,0.12538737]
[1726905401732,0.54335395,63148.0,63147.0,0.12538737]
[1726905401959,0.54323572,63148.0,63147.0,0.12538737]
[1726905402196,0.44822253,63148.0,63147.0,0.12538737]
[1726905402413,0.54324111,63148.0,63147.0,0.02873638]
[1726905402637,0.56697667,63148.0,63147.0,0.02873638]
[1726905403065,0.56697667,63148.0,63147.0,0.001]
[1726905414536,0.56697667,63148.0,63147.0,0.0968]
[1726905415475,0.44822253,63148.0,63147.0,0.0968]
[1726905415906,0.56697667,63148.0,63147.0,0.0968]
[1726905417490,0.44822253,63148.0,63147.0,0.0968]
[1726905420814,0.17901569,63148.0,63147.0,0.0968]
[1726905421026,0.44798664,63148.0,63147.0,0.0968]
[1726905423673,0.54299135,63148.0,63147.0,0.0968]
[1726905425725,0.44798664,63148.0,63147.0,0.0968]
[1726905425984,0.17901569,63148.0,63147.0,0.0968]
[1726905426222,0.4484058,63148.0,63147.0,0.0968]
[1726905427346,0.4484058,63148.0,63147.0,0.0988]
[1726905427820,0.4484058,63148.0,63147.0,0.0968]
[1726905429886,0.44855842,63148.0,63147.0,0.0968]
[1726905434821,0.44855842,63148.0,63147.0,0.11155193]
[1726905435483,0.567335,63148.0,63147.0,0.11155193]
[1726905437256,0.567335,63148.0,63147.0,0.11355193]
[1726905437474,0.567335,63148.0,63147.0,0.11355567]
[1726905437888,0.56747338,63148.0,63147.0,0.11355567]
[1726905440447,0.56747338,63148.0,63147.0,0.11155567]
[1726905444526,0.44868526,63148.0,63147.0,0.11156196]
[1726905444707,0.44876913,63148.0,63147.0,0.11156196]
[1726905449678,0.4487354,63148.0,63147.0,0.11156196]
[1726905451008,0.4487354,63148.0,63147.0,0.0968]
[1726905451527,0.4487354,63148.0,63147.0,0.11156493]
[1726905454741,0.44874137,63148.0,63147.0,0.11156493]
[1726905456715,0.44874137,63148.0,63147.0,0.01576493]
[1726905458434,0.44874137,63148.0,63147.0,0.001]
[1726905459525,0.44874137,63148.0,63147.0,0.0963]
[1726905459742,0.56758653,63148.0,63147.0,0.0963]
[1726905459941,0.44874137,63148.0,63147.0,0.0983]
[1726905460404,0.56758634,63148.0,63147.0,0.0983]
[1726905461146,0.56758634,63148.0,63147.0,0.0963]
[1726905461652,0.56758378,63148.0,63147.0,0.0963]
[1726905461897,0.44874137,63148.0,63147.0,0.0963]
[1726905462112,0.56758389,63148.0,63147.0,0.0963]
[1726905462759,0.56758306,63148.0,63147.0,0.0963]
[1726905467584,0.56758306,63148.0,63147.0,0.0983]
[1726905467790,0.56758306,63148.0,63147.0,0.0963]
[1726905469277,0.56758306,63148.0,63147.0,0.0983]
[1726905470795,0.56758306,63148.0,63147.0,0.0963]
[1726905471205,0.56758306,63148.0,63147.0,0.09560584]
[1726905473683,0.44874137,63148.0,63147.0,0.09560584]
[1726905474583,0.44874806,63148.0,63147.0,0.09560584]
[1726905479394,0.44859676,63148.0,63147.0,0.09560584]
[1726905482790,0.17901569,63148.0,63147.0,0.09560584]
[1726905483015,0.44870674,63148.0,63147.0,0.09560584]
[1726905487878,0.56756183,63148.0,63147.0,0.09560584]
[1726905488098,0.44872711,63148.0,63147.0,0.09560584]
[1726905488992,0.56756179,63148.0,63147.0,0.09560584]
[1726905492876,0.56761649,63148.0,63147.0,0.09560584]
[1726905497959,0.56761918,63148.0,63147.0,0.09560584]
[1726905502098,0.44878956,63148.0,63147.0,0.09560584]
[1726905502373,0.44878956,63148.0,63147.0,0.09760584]
[1726905502812,0.44868919,63148.0,63147.0,0.09560584]
[1726905504624,0.56752172,63148.0,63147.0,0.09560584]
[1726905505331,0.44868919,63148.0,63147.0,0.09560584]
[1726905505561,0.44868919,63148.0,63147.0,0.09725584]
[1726905511410,0.44868919,63148.0,63147.0,0.00195584]
[1726905512630,0.4485349,63148.0,63147.0,0.00195584]
[1726905517479,0.44840628,63148.0,63147.0,0.00195584]
[1726905519079,0.44840628,63148.0,63147.0,0.01677223]
[1726905525891,0.44840628,63148.0,63147.0,0.00195584]
[1726905527455,0.44834921,63148.0,63147.0,0.00195584]
[1726905532293,1.04473033,63148.0,63147.0,0.00195584]
[1726905532530,1.45804633,63148.0,63147.0,0.00195584]
[1726905533019,0.475096,63145.0,63144.0,0.001652]
[1726905533266,1.03590674,63145.0,63144.0,0.001652]
[1726905533493,1.35263774,63145.0,63144.0,0.001652]
[1726905533720,1.72970546,63145.0,63144.0,0.001652]
[1726905533943,1.41297446,63145.0,63144.0,0.001652]
[1726905534185,1.03590674,63145.0,63144.0,0.002652]
[1726905534436,1.17838666,63145.0,63144.0,0.002652]
[1726905534871,1.18038666,63145.0,63144.0,0.001652]
[1726905535094,1.18338666,63145.0,63144.0,0.001652]
[1726905535526,1.19138666,63145.0,63144.0,0.002652]
[1726905536386,1.18838666,63145.0,63144.0,0.002652]
[1726905536588,1.04590674,63145.0,63144.0,0.002652]
[1726905537106,1.04990674,63145.0,63144.0,0.002652]
[1726905537322,0.78057322,63145.0,63144.0,0.002652]
[1726905537548,1.04863066,63145.0,63144.0,0.002652]
[1726905542053,0.73189966,63145.0,63144.0,0.002652]
[1726905544558,0.45222754,63145.0,63144.0,0.002652]
[1726905544779,0.54712547,63145.0,63144.0,0.002652]
[1726905545000,0.54712547,63145.0,63144.0,0.094452]
[1726905545231,0.25534049,63145.0,63144.0,0.094452]
[1726905545687,0.1841701,63145.0,63144.0,0.094452]
[1726905548588,0.27906544,63145.0,63144.0,0.094452]
[1726905548829,0.54756587,63145.0,63144.0,0.094452]
[1726905549283,0.54748247,63145.0,63144.0,0.094452]
[1726905550626,0.25534778,63145.0,63144.0,0.094452]
[1726905550860,0.25534777,63145.0,63144.0,0.094452]
[1726905551320,0.23162195,63145.0,63144.0,0.096452]
[1726905551537,0.1841701,63145.0,63144.0,0.096452]
[1726905557013,0.17705367,63145.0,63144.0,0.096452]
[1726905559415,0.18405692,63145.0,63144.0,0.096452]
[1726905579819,0.03314572,63148.0,63144.0,0.096452]
[1726905580031,0.16305367,63148.0,63147.0,0.002]
[1726905581413,0.16305367,63148.0,63146.0,0.002]
[1726905581645,0.17005367,63148.0,63146.0,0.002]
[1726905582094,0.17305367,63148.0,63147.0,0.001]
[1726905582309,0.16305367,63148.0,63146.0,0.002]
[1726905582523,0.17005367,63148.0,63147.0,0.001]
[1726905582737,0.18005367,63148.0,63147.0,0.001]
[1726905582957,0.17005367,63148.0,63147.0,0.001]
[1726905583436,0.17505367,63148.0,63147.0,0.002]
[1726905584340,0.16805367,63148.0,63147.0,0.001]
[1726905584787,0.17505367,63148.0,63147.0,0.001]
[1726905585223,0.16805367,63148.0,63147.0,0.001]
[1726905585694,0.39276079,63148.0,63147.0,0.002]
[1726905585928,0.6610315,63148.0,63147.0,0.002]
[1726905586153,0.66081107,63148.0,63147.0,0.002]
[1726905586379,0.77949177,63148.0,63147.0,0.002]
[1726905587090,0.78031677,63148.0,63147.0,0.002]
[1726905587351,0.68391677,63148.0,63147.0,0.002]
[1726905588280,0.56523607,63148.0,63147.0,0.002]
[1726905588521,0.68394296,63148.0,63147.0,0.002]
[1726905589240,0.68395584,63148.0,63147.0,0.002]
[1726905589747,0.68395578,63148.0,63147.0,0.002]
[1726905589987,0.56523607,63148.0,63147.0,0.002]
[1726905596069,0.56546435,63148.0,63147.0,0.002]
[1726905598392,0.56546435,63148.0,63147.0,0.00365]
[1726905600282,0.29718579,63148.0,63147.0,0.00365]
[1726905600482,0.17587867,63148.0,63147.0,0.00365]
[1726905600715,0.44409413,63148.0,63147.0,0.00365]
[1726905600945,0.17587867,63148.0,63147.0,0.00365]
[1726905601389,0.44429754,63148.0,63147.0,0.00365]
[1726905602045,0.56303082,63148.0,63147.0,0.00365]
[1726905603861,0.44429754,63148.0,63147.0,0.00365]
[1726905604108,0.5630308,63148.0,63147.0,0.00365]
[1726905604326,0.44429754,63148.0,63147.0,0.00365]
[1726905604542,0.53928369,63148.0,63147.0,0.00365]
[1726905604766,0.44429754,63148.0,63147.0,0.00365]
[1726905605264,0.5630308,63148.0,63147.0,0.00365]
[1726905605707,0.5630308,63148.0,63147.0,0.09715]
[1726905605928,0.17587867,63148.0,63147.0,0.11189317]
[1726905606151,0.24711706,63148.0,63147.0,0.10989317]
[1726905606599,0.17587867,63148.0,63147.0,0.10989317]
[1726905606816,0.24711706,63148.0,63147.0,0.09515]
[1726905607041,0.247117,63148.0,63147.0,0.11189876]
[1726905607259,0.17587867,63148.0,63147.0,0.11189876]
[1726905607492,0.24711699,63148.0,63147.0,0.10989876]
[1726905608190,0.17587867,63148.0,63147.0,0.10989876]
[1726905608408,0.24711624,63148.0,63147.0,0.10989876]
[1726905608847,0.44496938,63148.0,63147.0,0.10989876]
[1726905609081,0.44494194,63148.0,63147.0,0.10989876]
[1726905609520,0.17587867,63148.0,63147.0,0.10989876]
[1726905609738,0.44481731,63148.0,63147.0,0.09515]
[1726905609959,0.56354717,63148.0,63147.0,0.09515]
[1726905610194,0.56354717,63148.0,63147.0,0.00365]
[1726905610641,0.44481731,63148.0,63147.0,0.00365]
[1726905611087,0.56355498,63148.0,63147.0,0.00365]
[1726905612242,0.44481731,63148.0,63147.0,0.00365]
[1726905615400,0.56356021,63148.0,63147.0,0.00365]
[1726905615641,0.44481731,63148.0,63147.0,0.10075]
[1726905615882,0.44481731,63148.0,63147.0,0.10275]
[1726905616388,0.28176364,63148.0,63147.0,0.10275]
[1726905616610,0.012825,63148.0,63147.0,0.17945]
[1726905617331,0.005825,63148.0,63147.0,0.17845]
[1726905617568,0.010825,63148.0,63147.0,0.17845]
[1726905618592,0.005825,63148.0,63147.0,0.17745]
[1726905618837,0.012825,63148.0,63147.0,0.17845]
[1726905619081,0.005825,63148.0,63147.0,0.17745]
[1726905619318,0.000825,63148.0,63147.0,0.17745]
[1726905619590,0.002825,63148.0,63147.0,0.19045]
[1726905620065,0.001825,63148.0,63147.0,0.18345]
[1726905620785,0.001825,63148.0,63147.0,0.19145]
[1726905621007,0.002825,63148.0,63147.0,0.19145]
[1726905630951,0.002825,63148.0,63147.0,0.19461658]
[1726905633555,0.002825,63148.0,63147.0,0.19145]
[1726905633794,0.002825,63148.0,63147.0,0.19461658]
[1726905634743,0.002825,63148.0,63147.0,0.19145]
[1726905635239,0.002825,63148.0,63147.0,0.19461651]
[1726905635921,0.00166161,63148.0,63147.0,0.19461651]
[1726905639030,0.00166161,63148.0,63147.0,0.45767018]
[1726905639250,0.00166161,63148.0,63147.0,0.45450367]
[1726905639474,0.00166161,63148.0,63147.0,0.51230103]
[1726905640124,0.00066161,63148.0,63147.0,0.50430103]
[1726905640613,0.000826,63153.0,63152.0,0.0992]
[1726905640833,0.000826,63153.0,63152.0,0.44252438]
[1726905641068,0.000826,63153.0,63152.0,0.53935815]
[1726905641739,0.000826,63153.0,63152.0,0.54135815]
[1726905642660,0.001826,63153.0,63152.0,0.55435815]
[1726905644288,0.001826,63153.0,63152.0,0.56835815]
[1726905645441,0.001826,63153.0,63152.0,0.58590134]
[1726905646386,0.001826,63153.0,63152.0,0.60228213]
[1726905647531,0.001826,63153.0,63152.0,0.48097501]
[1726905647763,0.001826,63153.0,63152.0,0.60028213]
[1726905648510,0.001826,63153.0,63152.0,0.26012398]
[1726905648986,0.001826,63153.0,63152.0,0.24574731]
[1726905649438,0.001826,63153.0,63152.0,0.36705443]
[1726905649687,0.000826,63153.0,63152.0,0.35088791]
[1726905650160,0.001826,63153.0,63152.0,0.3599156]
[1726905650364,0.001826,63153.0,63152.0,0.3459156]
[1726905650573,0.002826,63153.0,63152.0,0.3569156]
[1726905651050,0.002826,63153.0,63152.0,0.3459156]
[1726905651296,0.001826,63153.0,63152.0,0.3459156]
[1726905651505,0.002826,63153.0,63152.0,0.3569156]
[1726905654550,0.002826,63153.0,63152.0,0.51996927]
[1726905655021,0.002826,63153.0,63152.0,0.50356079]
[1726905655267,0.002826,63153.0,63152.0,0.51994635]
[1726905655496,0.000826,63153.0,63152.0,0.50194635]
[1726905655715,0.001826,63153.0,63152.0,0.51594635]
[1726905656039,0.001826,63153.0,63152.0,0.50194635]
[1726905656271,0.002826,63153.0,63152.0,0.51594635]
[1726905656704,0.002826,63153.0,63152.0,0.52994635]
[1726905657160,0.002826,63153.0,63152.0,0.51594635]
[1726905657599,0.002826,63153.0,63152.0,0.52994635]
[1726905658063,0.002826,63153.0,63152.0,0.52993132]
[1726905658286,0.002826,63153.0,63152.0,0.52993356]
[1726905661168,0.002826,63153.0,63152.0,0.52991952]
[1726905663944,0.002826,63153.0,63152.0,0.52791952]
[1726905670740,0.002826,63153.0,63152.0,0.52991952]
[1726905671343,0.002826,63153.0,63152.0,0.52795225]
[1726905672636,0.002826,63153.0,63152.0,0.52995225]
[1726905674457,0.002826,63153.0,63152.0,0.52795225]
[1726905676434,0.002826,63153.0,63152.0,0.52995225]
[1726905677147,0.002826,63153.0,63152.0,0.52795225]
[1726905678089,0.002826,63153.0,63152.0,0.52795269]
[1726905679650,0.002826,63153.0,63152.0,0.52769589]
[1726905680359,0.002826,63153.0,63152.0,0.57501491]
[1726905681006,0.002826,63153.0,63152.0,0.57502184]
[1726905682360,0.002826,63153.0,63152.0,0.52769589]
[1726905683192,0.002826,63153.0,63152.0,0.59868481]
[1726905683420,0.002826,63153.0,63152.0,0.59869124]
[1726905683642,0.002826,63153.0,63152.0,0.52770232]
[1726905684337,0.002826,63153.0,63152.0,0.62235422]
[1726905684589,0.002826,63153.0,63152.0,0.6222607]
[1726905685661,0.002826,63153.0,63152.0,0.62232815]
[1726905689032,0.002826,63153.0,63152.0,0.60592982]
[1726905689270,0.002826,63153.0,63152.0,0.62233129]
[1726905690599,0.002826,63153.0,63152.0,0.62232978]
[1726905691755,0.002826,63153.0,63152.0,0.50102266]
[1726905691987,0.002826,63153.0,63152.0,0.62232978]
[1726905692905,0.002826,63153.0,63152.0,0.52761194]
[1726905693130,0.002826,63153.0,63152.0,0.62232978]
[1726905694810,0.002826,63153.0,63152.0,0.47533038]
[1726905695025,0.002826,63153.0,63152.0,0.5966375]
[1726905695282,0.002826,63153.0,63152.0,0.52561194]
[1726905695715,0.002826,63153.0,63152.0,0.50921047]
[1726905696177,0.002826,63153.0,63152.0,0.60391895]
[1726905696408,0.002826,63153.0,63152.0,0.38790335]
[1726905696909,0.002826,63153.0,63152.0,0.50921047]
[1726905697164,0.002826,63153.0,63152.0,0.60391895]
[1726905697384,0.002826,63153.0,63152.0,0.50921047]
[1726905697619,0.002826,63153.0,63152.0,0.60391895]
[1726905698064,0.002826,63153.0,63152.0,0.50921047]
[1726905698282,0.002826,63153.0,63152.0,0.60391895]
[1726905699152,0.002826,63153.0,63152.0,0.50921047]
[1726905699374,0.002826,63153.0,63152.0,0.60392941]
[1726905700307,0.002826,63153.0,63152.0,0.50921047]
[1726905701020,0.002826,63153.0,63152.0,0.60393434]
[1726905701245,0.002826,63153.0,63152.0,0.50921047]
[1726905701944,0.002826,63153.0,63152.0,0.60393413]
[1726905702853,0.002826,63153.0,63152.0,0.50921047]
[1726905705197,0.002826,63153.0,63152.0,0.62761532]
[1726905705430,0.002826,63153.0,63152.0,0.62761676]
[1726905710125,0.002826,63153.0,63152.0,0.50921047]
[1726905711865,0.002826,63153.0,63152.0,0.51121047]
[1726905712333,0.002826,63153.0,63152.0,0.62959943]
[1726905714348,0.002826,63153.0,63152.0,0.51121047]
[1726905716395,0.002826,63153.0,63152.0,0.62959563]
[1726905716645,0.002826,63153.0,63152.0,0.63124563]
[1726905717336,0.002826,63153.0,63152.0,0.63124489]
[1726905717557,0.002826,63153.0,63152.0,0.51286047]
[1726905719763,0.002826,63153.0,63152.0,0.63124909]
[1726905720262,0.002826,63153.0,63152.0,0.63124771]
[1726905721005,0.002826,63153.0,63152.0,0.51286047]
[1726905722983,0.002826,63153.0,63152.0,0.53009938]
[1726905725447,0.002826,63153.0,63152.0,0.52809938]
[1726905725659,0.002826,63153.0,63152.0,0.6464721]
[1726905726771,0.002826,63153.0,63152.0,0.62923319]